[Event "Titled Tuesday Blitz November 22 Early 2022"]
[White "Aldokhin, Ivan"]
[Black "Chirilov, James A"]
[WhiteFideId "24115720"]
[BlackFideId "30976677"]
[WhiteElo "2313"]
[BlackElo "1790"]
[Result "1-0"]
[Round "02"]
[TimeControl "180+1"]
[Date "2022.11.23"]
[WhiteClock "0:00:08"]
[BlackClock "0:00:05"]

1. e4 {[%clk 0:03:00]}  c5 {[%clk 0:02:59]} 2. Nf3 {[%clk 0:03:00]}  d6 {[%clk 0:02:59]} 3. d4 {[%clk 0:03:01]}  cxd4 {[%clk 0:03:00]} 4. Nxd4 {[%clk 0:03:02]}  Nf6 {[%clk 0:03:00]} 5. Nc3 {[%clk 0:03:03]}  a6 {[%clk 0:03:00]} 6. Bc4 {[%clk 0:03:03]}  e6 {[%clk 0:02:54]} 7. Bb3 {[%clk 0:03:04]}  b5 {[%clk 0:02:54]} 8. O-O {[%clk 0:03:03]}  Bb7 {[%clk 0:02:51]} 9. Re1 {[%clk 0:03:02]}  Nc6 {[%clk 0:02:40]} 10. Nxc6 {[%clk 0:02:59]}  Bxc6 {[%clk 0:02:41]} 11. a4 {[%clk 0:02:59]}  b4 {[%clk 0:02:36]} 12. Nd5 {[%clk 0:02:59]}  a5 {[%clk 0:02:28]} 13. Bg5 {[%clk 0:02:47]}  h6 {[%clk 0:02:15]} 14. Bxf6 {[%clk 0:02:40]}  gxf6 {[%clk 0:02:15]} 15. Nf4 {[%clk 0:02:40]}  Qb6 {[%clk 0:01:32]} 16. Nd5 {[%clk 0:02:16]}  Qd8 {[%clk 0:01:23]} 17. Qh5 {[%clk 0:02:16]}  Rg8 {[%clk 0:01:15]} 18. h4 {[%clk 0:02:05]}  Bb7 {[%clk 0:01:02]} 19. Nf4 {[%clk 0:01:59]}  Ke7 {[%clk 0:00:47]} 20. Rad1 {[%clk 0:01:58]}  Qb6 {[%clk 0:00:39]} 21. Nd5+ {[%clk 0:01:46]}  Bxd5 {[%clk 0:00:29]} 22. exd5 {[%clk 0:01:47]}  e5 {[%clk 0:00:29]} 23. Rd3 {[%clk 0:01:38]}  Rg6 {[%clk 0:00:22]} 24. Rf3 {[%clk 0:01:35]}  Rc8 {[%clk 0:00:21]} 25. Re4 {[%clk 0:01:34]}  Kd8 {[%clk 0:00:20]} 26. Qf5 {[%clk 0:01:31]}  Be7 {[%clk 0:00:19]} 27. Bc4 {[%clk 0:01:14]}  Qc5 {[%clk 0:00:18]} 28. Ba6 {[%clk 0:01:08]}  Ra8 {[%clk 0:00:16]} 29. Rc4 {[%clk 0:01:02]}  Rxa6 {[%clk 0:00:07]} 30. Rxc5 {[%clk 0:01:00]}  dxc5 {[%clk 0:00:08]} 31. Qd3 {[%clk 0:00:56]}  Rb6 {[%clk 0:00:07]} 32. h5 {[%clk 0:00:46]}  Rg5 {[%clk 0:00:07]} 33. Qh7 {[%clk 0:00:45]}  Rxh5 {[%clk 0:00:06]} 34. Qg8+ {[%clk 0:00:45]}  Kd7 {[%clk 0:00:06]} 35. Qa8 {[%clk 0:00:38]}  e4 {[%clk 0:00:03]} 36. Qa7+ {[%clk 0:00:33]}  Ke8 {[%clk 0:00:03]} 37. Qxb6 {[%clk 0:00:27]}  exf3 {[%clk 0:00:04]} 38. Qc6+ {[%clk 0:00:23]}  Kf8 {[%clk 0:00:03]} 39. d6 {[%clk 0:00:23]}  Bd8 {[%clk 0:00:04]} 40. Qc8 {[%clk 0:00:21]}  Ke8 {[%clk 0:00:05]} 41. Qc6+ {[%clk 0:00:20]}  Kf8 {[%clk 0:00:05]} 42. Qxf3 {[%clk 0:00:16]}  Re5 {[%clk 0:00:05]} 43. Qa8 {[%clk 0:00:16]}  Ke8 {[%clk 0:00:05]} 44. Qc6+ {[%clk 0:00:16]}  Kf8 {[%clk 0:00:05]} 45. Qd7 {[%clk 0:00:17]}  Re8 {[%clk 0:00:03]} 46. g3 {[%clk 0:00:16]}  h5 {[%clk 0:00:04]} 47. Kg2 {[%clk 0:00:16]}  Bb6 {[%clk 0:00:04]} 48. b3 {[%clk 0:00:15]}  c4 {[%clk 0:00:04]} 49. Qc6 {[%clk 0:00:12]}  Ba7 {[%clk 0:00:03]} 50. bxc4 {[%clk 0:00:11]}  Re2 {[%clk 0:00:01]} 51. Qa8+ {[%clk 0:00:09]}  Kg7 {[%clk 0:00:02]} 52. Qxa7 {[%clk 0:00:09]}  Rd2 {[%clk 0:00:03]} 53. d7 {[%clk 0:00:08]}  b3 {[%clk 0:00:03]} 54. cxb3 {[%clk 0:00:08]}  f5 {[%clk 0:00:03]} 55. c5 {[%clk 0:00:08]}  f4 {[%clk 0:00:03]} 56. gxf4 {[%clk 0:00:08]}  h4 {[%clk 0:00:03]} 57. c6 {[%clk 0:00:08]}  h3+ {[%clk 0:00:04]} 58. Kxh3 {[%clk 0:00:08]}  Rd6 {[%clk 0:00:05]} 59. Qc5 {[%clk 0:00:07]}  Rh6+ {[%clk 0:00:04]} 60. Kg3 {[%clk 0:00:07]}  Rg6+ {[%clk 0:00:05]} 61. Kf3 {[%clk 0:00:08]} 1-0


[Site "https://www.chess.com"]

[Event "Titled Tuesday Blitz November 22 Early 2022"]
[White "Alekseenko, Kirill"]
[Black "Gabdrakhmanov, Azat"]
[WhiteFideId "4135539"]
[BlackFideId "34189197"]
[WhiteElo "2682"]
[BlackElo "2254"]
[Result "1-0"]
[Round "02"]
[TimeControl "180+1"]
[Date "2022.11.22"]
[WhiteClock "0:00:36"]
[BlackClock "0:00:10"]

1. e4 {[%clk 0:03:00]}  c5 {[%clk 0:02:19]} 2. Nf3 {[%clk 0:02:57]}  e6 {[%clk 0:02:19]} 3. d4 {[%clk 0:02:57]}  cxd4 {[%clk 0:02:20]} 4. Nxd4 {[%clk 0:02:58]}  a6 {[%clk 0:02:21]} 5. Nc3 {[%clk 0:02:58]}  Qc7 {[%clk 0:02:21]} 6. Be2 {[%clk 0:02:57]}  Nf6 {[%clk 0:02:22]} 7. O-O {[%clk 0:02:57]}  d6 {[%clk 0:02:22]} 8. f4 {[%clk 0:02:53]}  Be7 {[%clk 0:02:23]} 9. Be3 {[%clk 0:02:51]}  Nbd7 {[%clk 0:02:23]} 10. Qe1 {[%clk 0:02:47]}  b5 {[%clk 0:02:22]} 11. a3 {[%clk 0:02:46]}  Bb7 {[%clk 0:02:22]} 12. Bf3 {[%clk 0:02:47]}  O-O {[%clk 0:02:17]} 13. Qg3 {[%clk 0:02:35]}  Rab8 {[%clk 0:02:16]} 14. Rae1 {[%clk 0:02:33]}  Kh8 {[%clk 0:01:34]} 15. Kh1 {[%clk 0:02:28]}  Rfe8 {[%clk 0:01:22]} 16. Bg1 {[%clk 0:02:22]}  e5 {[%clk 0:01:13]} 17. Nf5 {[%clk 0:02:18]}  Bf8 {[%clk 0:00:53]} 18. fxe5 {[%clk 0:02:14]}  Nxe5 {[%clk 0:00:53]} 19. Bd1 {[%clk 0:02:10]}  g6 {[%clk 0:00:46]} 20. Qh4 {[%clk 0:01:45]}  gxf5 {[%clk 0:00:27]} 21. Qxf6+ {[%clk 0:01:44]}  Bg7 {[%clk 0:00:28]} 22. Qxf5 {[%clk 0:01:44]}  Nc4 {[%clk 0:00:28]} 23. Rf3 {[%clk 0:01:08]}  Re5 {[%clk 0:00:20]} 24. Qxf7 {[%clk 0:01:08]}  Re7 {[%clk 0:00:17]} 25. Qh5 {[%clk 0:01:06]}  Nxb2 {[%clk 0:00:16]} 26. Nd5 {[%clk 0:00:53]}  Bxd5 {[%clk 0:00:15]} 27. Qxd5 {[%clk 0:00:54]}  Nxd1 {[%clk 0:00:15]} 28. Qxd1 {[%clk 0:00:53]}  Rbe8 {[%clk 0:00:14]} 29. Rh3 {[%clk 0:00:50]}  Qc4 {[%clk 0:00:11]} 30. Qh5 {[%clk 0:00:47]}  h6 {[%clk 0:00:11]} 31. Rh4 {[%clk 0:00:39]}  Rxe4 {[%clk 0:00:11]} 32. Qxe8+ {[%clk 0:00:36]}  Rxe8 {[%clk 0:00:10]} 33. Rxe8+ {[%clk 0:00:36]} 1-0


[Site "https://www.chess.com"]

[Event "Titled Tuesday Blitz November 22 Early 2022"]
[White "Aloma Vidal, Robert"]
[Black "Sarana, Alexey"]
[WhiteFideId "2260409"]
[BlackFideId "24133795"]
[WhiteElo "2435"]
[BlackElo "2708"]
[Result "0-1"]
[Round "02"]
[TimeControl "180+1"]
[Date "2022.11.22"]
[WhiteClock "0:00:21"]
[BlackClock "0:00:32"]

1. e4 {[%clk 0:03:00]}  c5 {[%clk 0:02:59]} 2. c3 {[%clk 0:03:01]}  d5 {[%clk 0:03:00]} 3. exd5 {[%clk 0:03:01]}  Qxd5 {[%clk 0:03:00]} 4. d4 {[%clk 0:03:02]}  Nc6 {[%clk 0:03:01]} 5. Nf3 {[%clk 0:03:02]}  Bf5 {[%clk 0:03:02]} 6. Be2 {[%clk 0:02:59]}  Nf6 {[%clk 0:03:01]} 7. O-O {[%clk 0:02:58]}  cxd4 {[%clk 0:03:02]} 8. cxd4 {[%clk 0:02:55]}  e6 {[%clk 0:03:02]} 9. Nc3 {[%clk 0:02:55]}  Qd6 {[%clk 0:02:59]} 10. Nb5 {[%clk 0:02:45]}  Qd7 {[%clk 0:02:59]} 11. Bf4 {[%clk 0:02:45]}  Nd5 {[%clk 0:02:59]} 12. Bg3 {[%clk 0:02:46]}  Be7 {[%clk 0:02:57]} 13. Ne5 {[%clk 0:02:37]}  Nxe5 {[%clk 0:02:57]} 14. dxe5 {[%clk 0:02:37]}  O-O {[%clk 0:02:57]} 15. Nd6 {[%clk 0:02:37]}  Bxd6 {[%clk 0:02:07]} 16. exd6 {[%clk 0:02:38]}  f6 {[%clk 0:02:08]} 17. Bc4 {[%clk 0:02:34]}  Nb6 {[%clk 0:02:03]} 18. Bb3 {[%clk 0:02:32]}  Kh8 {[%clk 0:02:03]} 19. a4 {[%clk 0:02:27]}  e5 {[%clk 0:02:00]} 20. a5 {[%clk 0:02:23]}  Nc8 {[%clk 0:02:01]} 21. Qd5 {[%clk 0:02:23]}  Nxd6 {[%clk 0:02:00]} 22. Rfd1 {[%clk 0:02:09]}  Rad8 {[%clk 0:01:59]} 23. a6 {[%clk 0:02:05]}  b6 {[%clk 0:01:58]} 24. f4 {[%clk 0:01:27]}  e4 {[%clk 0:01:34]} 25. Ra4 {[%clk 0:01:17]}  Qe7 {[%clk 0:01:21]} 26. Rad4 {[%clk 0:01:16]}  e3 {[%clk 0:01:16]} 27. Qf3 {[%clk 0:01:02]}  e2 {[%clk 0:00:47]} 28. Re1 {[%clk 0:01:00]}  Ne4 {[%clk 0:00:48]} 29. Rxd8 {[%clk 0:00:56]}  Rxd8 {[%clk 0:00:48]} 30. Qxe2 {[%clk 0:00:49]}  Qb4 {[%clk 0:00:37]} 31. Bc2 {[%clk 0:00:43]}  Rd2 {[%clk 0:00:35]} 32. Rd1 {[%clk 0:00:30]}  Qc5+ {[%clk 0:00:35]} 33. Bf2 {[%clk 0:00:27]}  Qxc2 {[%clk 0:00:34]} 34. Rxd2 {[%clk 0:00:21]}  Qxd2 {[%clk 0:00:32]} 35. Qc4 {[%clk 0:00:21]}  Qd1+ {[%clk 0:00:32]} 0-1


[Site "https://www.chess.com"]

[Event "Titled Tuesday Blitz November 22 Early 2022"]
[White "Arbunic Castro, Giovanna"]
[Black "Stijve, Theo"]
[WhiteFideId "3400549"]
[BlackFideId "1331132"]
[WhiteElo "1954"]
[BlackElo "2256"]
[Result "0-1"]
[Round "02"]
[TimeControl "180+1"]
[Date "2022.11.23"]
[WhiteClock "0:00:42"]
[BlackClock "0:00:53"]

1. e4 {[%clk 0:03:00]}  c6 {[%clk 0:02:58]} 2. d4 {[%clk 0:02:59]}  d5 {[%clk 0:02:58]} 3. e5 {[%clk 0:02:59]}  Bf5 {[%clk 0:02:58]} 4. Nf3 {[%clk 0:02:59]}  e6 {[%clk 0:02:56]} 5. Be2 {[%clk 0:02:58]}  h6 {[%clk 0:02:52]} 6. a3 {[%clk 0:02:57]}  Nd7 {[%clk 0:02:52]} 7. Nbd2 {[%clk 0:02:54]}  c5 {[%clk 0:02:50]} 8. dxc5 {[%clk 0:02:52]}  Bxc5 {[%clk 0:02:50]} 9. b4 {[%clk 0:02:52]}  Bb6 {[%clk 0:02:48]} 10. Bb2 {[%clk 0:02:52]}  Ne7 {[%clk 0:02:46]} 11. c4 {[%clk 0:02:51]}  dxc4 {[%clk 0:02:43]} 12. Nxc4 {[%clk 0:02:49]}  Bc7 {[%clk 0:02:39]} 13. Nd6+ {[%clk 0:02:44]}  Bxd6 {[%clk 0:02:34]} 14. exd6 {[%clk 0:02:43]}  Nd5 {[%clk 0:02:32]} 15. O-O {[%clk 0:02:37]}  O-O {[%clk 0:02:29]} 16. Bc4 {[%clk 0:02:30]}  N7f6 {[%clk 0:02:28]} 17. Bxd5 {[%clk 0:02:27]}  Nxd5 {[%clk 0:02:12]} 18. Qd4 {[%clk 0:02:21]}  f6 {[%clk 0:02:07]} 19. Qc5 {[%clk 0:02:00]}  Qb6 {[%clk 0:02:02]} 20. Nd4 {[%clk 0:01:57]}  Rac8 {[%clk 0:01:31]} 21. Qxb6 {[%clk 0:01:46]}  axb6 {[%clk 0:01:30]} 22. Nxf5 {[%clk 0:01:46]}  exf5 {[%clk 0:01:30]} 23. Rfd1 {[%clk 0:01:46]}  Nf4 {[%clk 0:01:25]} 24. Kf1 {[%clk 0:01:36]}  Rfd8 {[%clk 0:01:22]} 25. Rd4 {[%clk 0:01:12]}  Ne6 {[%clk 0:01:17]} 26. Rd5 {[%clk 0:01:11]}  Rc2 {[%clk 0:01:13]} 27. Re1 {[%clk 0:01:00]}  Nc7 {[%clk 0:00:54]} 28. dxc7 {[%clk 0:00:53]}  Rxd5 {[%clk 0:00:53]} 29. Re8+ {[%clk 0:00:52]}  Kf7 {[%clk 0:00:53]} 30. c8=Q {[%clk 0:00:51]}  Rd1+ {[%clk 0:00:53]} 31. Re1 {[%clk 0:00:45]}  Rxe1+ {[%clk 0:00:53]} 32. Kxe1 {[%clk 0:00:45]}  Rxc8 {[%clk 0:00:54]} 33. Bd4 {[%clk 0:00:44]}  Ra8 {[%clk 0:00:53]} 34. Bxb6 {[%clk 0:00:43]}  Rxa3 {[%clk 0:00:53]} 35. Bc5 {[%clk 0:00:42]}  Ra2 {[%clk 0:00:53]} 0-1


[Site "https://www.chess.com"]

[Event "Titled Tuesday Blitz November 22 Early 2022"]
[White "Barp, Alberto"]
[Black "Kravtsiv, Martyn"]
[WhiteFideId "872555"]
[BlackFideId "14113147"]
[WhiteElo "2313"]
[BlackElo "2694"]
[Result "0-1"]
[Round "02"]
[TimeControl "180+1"]
[Date "2022.11.23"]
[WhiteClock "0:00:17"]
[BlackClock "0:00:23"]

1. d4 {[%clk 0:02:56]}  d5 {[%clk 0:02:59]} 2. c4 {[%clk 0:02:57]}  e6 {[%clk 0:02:59]} 3. Nf3 {[%clk 0:02:57]}  Nf6 {[%clk 0:02:58]} 4. g3 {[%clk 0:02:57]}  Bb4+ {[%clk 0:02:57]} 5. Bd2 {[%clk 0:02:57]}  Be7 {[%clk 0:02:58]} 6. Bg2 {[%clk 0:02:58]}  O-O {[%clk 0:02:58]} 7. O-O {[%clk 0:02:59]}  c6 {[%clk 0:02:58]} 8. Qc2 {[%clk 0:03:00]}  Nbd7 {[%clk 0:02:58]} 9. Rd1 {[%clk 0:02:58]}  a5 {[%clk 0:02:58]} 10. Bf4 {[%clk 0:02:56]}  b5 {[%clk 0:02:56]} 11. Ne5 {[%clk 0:02:51]}  Bb7 {[%clk 0:02:53]} 12. Nxd7 {[%clk 0:02:27]}  Qxd7 {[%clk 0:02:50]} 13. c5 {[%clk 0:02:27]}  Nh5 {[%clk 0:02:48]} 14. Bd2 {[%clk 0:02:19]}  f5 {[%clk 0:02:48]} 15. a3 {[%clk 0:02:17]}  Bd8 {[%clk 0:02:41]} 16. b4 {[%clk 0:02:15]}  a4 {[%clk 0:02:37]} 17. e3 {[%clk 0:02:09]}  Bc7 {[%clk 0:02:38]} 18. Bc3 {[%clk 0:02:04]}  g5 {[%clk 0:02:36]} 19. Nd2 {[%clk 0:02:02]}  Qg7 {[%clk 0:02:36]} 20. Nf3 {[%clk 0:02:00]}  Rae8 {[%clk 0:02:32]} 21. Ne5 {[%clk 0:01:58]}  Kh8 {[%clk 0:02:28]} 22. Qe2 {[%clk 0:01:57]}  Nf6 {[%clk 0:02:27]} 23. f3 {[%clk 0:01:53]}  Rg8 {[%clk 0:02:23]} 24. Rf1 {[%clk 0:01:50]}  Ref8 {[%clk 0:02:21]} 25. Rae1 {[%clk 0:01:49]}  g4 {[%clk 0:02:13]} 26. f4 {[%clk 0:00:59]}  h5 {[%clk 0:02:12]} 27. Kf2 {[%clk 0:00:59]}  h4 {[%clk 0:02:12]} 28. Rg1 {[%clk 0:00:56]}  Qh6 {[%clk 0:02:10]} 29. Ref1 {[%clk 0:00:54]}  Nh5 {[%clk 0:01:58]} 30. Qe1 {[%clk 0:00:52]}  Rg7 {[%clk 0:01:48]} 31. Ke2 {[%clk 0:00:51]}  Rh7 {[%clk 0:01:47]} 32. Kd2 {[%clk 0:00:51]}  Rg8 {[%clk 0:01:42]} 33. Kc1 {[%clk 0:00:51]}  Bxe5 {[%clk 0:01:34]} 34. dxe5 {[%clk 0:00:49]}  Bc8 {[%clk 0:01:34]} 35. Bd4 {[%clk 0:00:49]}  Bd7 {[%clk 0:01:35]} 36. Kb2 {[%clk 0:00:49]}  Rg6 {[%clk 0:01:34]} 37. Kc3 {[%clk 0:00:49]}  Qg7 {[%clk 0:01:34]} 38. Kb2 {[%clk 0:00:49]}  Rgh6 {[%clk 0:01:34]} 39. Qf2 {[%clk 0:00:45]}  Qe7 {[%clk 0:01:32]} 40. Kc3 {[%clk 0:00:45]}  Be8 {[%clk 0:01:32]} 41. Re1 {[%clk 0:00:45]}  Bg6 {[%clk 0:01:32]} 42. Rd1 {[%clk 0:00:41]}  Kg8 {[%clk 0:01:32]} 43. Rde1 {[%clk 0:00:42]}  Kf8 {[%clk 0:01:32]} 44. Rd1 {[%clk 0:00:42]}  Ke8 {[%clk 0:01:33]} 45. Rde1 {[%clk 0:00:42]}  Qf8 {[%clk 0:01:33]} 46. Ref1 {[%clk 0:00:42]}  Qh8 {[%clk 0:01:33]} 47. Re1 {[%clk 0:00:41]}  Ng7 {[%clk 0:01:33]} 48. Ref1 {[%clk 0:00:40]}  hxg3 {[%clk 0:01:30]} 49. hxg3 {[%clk 0:00:40]}  Rh2 {[%clk 0:01:31]} 50. Qe1 {[%clk 0:00:38]}  Kd7 {[%clk 0:01:30]} 51. Qf2 {[%clk 0:00:31]}  Bf7 {[%clk 0:01:24]} 52. Qe1 {[%clk 0:00:31]}  R7h6 {[%clk 0:01:24]} 53. Qf2 {[%clk 0:00:30]}  R6h3 {[%clk 0:01:23]} 54. Qe1 {[%clk 0:00:30]}  Rh6 {[%clk 0:01:20]} 55. Qf2 {[%clk 0:00:30]}  R6h3 {[%clk 0:01:08]} 56. Qe1 {[%clk 0:00:30]}  Bh5 {[%clk 0:01:03]} 57. Kb2 {[%clk 0:00:22]}  Qh6 {[%clk 0:01:02]} 58. Ka1 {[%clk 0:00:22]}  Ke8 {[%clk 0:01:03]} 59. Qf2 {[%clk 0:00:21]}  Bg6 {[%clk 0:01:00]} 60. Qe1 {[%clk 0:00:22]}  Kf7 {[%clk 0:00:53]} 61. Bb2 {[%clk 0:00:22]}  Qh7 {[%clk 0:00:51]} 62. Bd4 {[%clk 0:00:22]}  Nh5 {[%clk 0:00:48]} 63. Bxh3 {[%clk 0:00:22]}  gxh3 {[%clk 0:00:40]} 64. Rh1 {[%clk 0:00:21]}  Rxh1 {[%clk 0:00:26]} 65. Rxh1 {[%clk 0:00:22]}  Ng7 {[%clk 0:00:25]} 66. Qf1 {[%clk 0:00:22]}  Qh5 {[%clk 0:00:25]} 67. Rxh3 {[%clk 0:00:22]}  Qg4 {[%clk 0:00:25]} 68. Kb2 {[%clk 0:00:19]}  Nh5 {[%clk 0:00:25]} 69. Kc3 {[%clk 0:00:18]}  Nxg3 {[%clk 0:00:23]} 70. Qg2 {[%clk 0:00:18]}  Ne4+ {[%clk 0:00:23]} 71. Qxe4 {[%clk 0:00:17]} 0-1


[Site "https://www.chess.com"]

[Event "Titled Tuesday Blitz November 22 Early 2022"]
[White "Beerdsen, Thomas"]
[Black "Jimenez Almeida, Luis David"]
[WhiteFideId "1030108"]
[BlackFideId "22242244"]
[WhiteElo "2567"]
[BlackElo "2158"]
[Result "0-1"]
[Round "02"]
[TimeControl "180+1"]
[Date "2022.11.23"]
[WhiteClock "0:01:35"]
[BlackClock "0:00:42"]

1. e4 {[%clk 0:03:00]}  c6 {[%clk 0:02:53]} 2. Nc3 {[%clk 0:02:59]}  g6 {[%clk 0:02:52]} 3. Nf3 {[%clk 0:02:59]}  Bg7 {[%clk 0:02:52]} 4. h4 {[%clk 0:03:00]}  h5 {[%clk 0:02:51]} 5. Bc4 {[%clk 0:03:00]}  d6 {[%clk 0:02:48]} 6. Ng5 {[%clk 0:03:00]}  e6 {[%clk 0:02:47]} 7. Bb3 {[%clk 0:03:00]}  Nf6 {[%clk 0:02:45]} 8. d4 {[%clk 0:03:00]}  O-O {[%clk 0:02:31]} 9. f3 {[%clk 0:02:56]}  e5 {[%clk 0:02:23]} 10. Be3 {[%clk 0:02:55]}  a5 {[%clk 0:02:21]} 11. Qd2 {[%clk 0:02:48]}  Qe7 {[%clk 0:02:18]} 12. O-O-O {[%clk 0:02:47]}  b5 {[%clk 0:02:17]} 13. a4 {[%clk 0:02:44]}  b4 {[%clk 0:02:06]} 14. Ne2 {[%clk 0:02:42]}  Nbd7 {[%clk 0:02:03]} 15. dxe5 {[%clk 0:02:40]}  dxe5 {[%clk 0:02:02]} 16. Qd6 {[%clk 0:02:41]}  Qxd6 {[%clk 0:01:50]} 17. Rxd6 {[%clk 0:02:42]}  Ba6 {[%clk 0:01:50]} 18. Ng3 {[%clk 0:02:32]}  c5 {[%clk 0:01:43]} 19. Bxf7+ {[%clk 0:02:21]}  Rxf7 {[%clk 0:01:40]} 20. Nxf7 {[%clk 0:02:22]}  Kxf7 {[%clk 0:01:38]} 21. Rhd1 {[%clk 0:02:22]}  Ra7 {[%clk 0:01:29]} 22. b3 {[%clk 0:02:12]}  Bf8 {[%clk 0:01:29]} 23. Rc6 {[%clk 0:02:09]}  Ra8 {[%clk 0:01:18]} 24. Bg5 {[%clk 0:02:09]}  Be7 {[%clk 0:00:51]} 25. Rc7 {[%clk 0:02:03]}  Ke6 {[%clk 0:00:49]} 26. Nh1 {[%clk 0:01:51]}  c4 {[%clk 0:00:49]} 27. Kb1 {[%clk 0:01:47]}  cxb3 {[%clk 0:00:47]} 28. cxb3 {[%clk 0:01:47]}  Rc8 {[%clk 0:00:47]} 29. Ra7 {[%clk 0:01:47]}  Rc6 {[%clk 0:00:44]} 30. Nf2 {[%clk 0:01:40]}  Bc5 {[%clk 0:00:44]} 31. Nh3 {[%clk 0:01:35]}  Bxa7 {[%clk 0:00:42]} 0-1


[Site "https://www.chess.com"]

[Event "Titled Tuesday Blitz November 22 Early 2022"]
[White "Bluebaum, Matthias"]
[Black "Darini, Pouria"]
[WhiteFideId "24651516"]
[BlackFideId "12502200"]
[WhiteElo "2633"]
[BlackElo "2483"]
[Result "1-0"]
[Round "02"]
[TimeControl "180+1"]
[Date "2022.11.22"]
[WhiteClock "0:02:26"]
[BlackClock "0:00:45"]

1. d4 {[%clk 0:03:00]}  Nf6 {[%clk 0:02:59]} 2. c4 {[%clk 0:03:01]}  e6 {[%clk 0:02:58]} 3. Nc3 {[%clk 0:03:01]}  Bb4 {[%clk 0:02:57]} 4. e3 {[%clk 0:03:02]}  O-O {[%clk 0:02:55]} 5. Bd2 {[%clk 0:03:02]}  d5 {[%clk 0:02:55]} 6. Nf3 {[%clk 0:03:03]}  b6 {[%clk 0:02:55]} 7. cxd5 {[%clk 0:03:03]}  exd5 {[%clk 0:02:53]} 8. Rc1 {[%clk 0:03:04]}  a6 {[%clk 0:02:53]} 9. Bd3 {[%clk 0:03:02]}  Bb7 {[%clk 0:02:49]} 10. O-O {[%clk 0:03:02]}  Nbd7 {[%clk 0:02:49]} 11. Ne5 {[%clk 0:03:02]}  Nxe5 {[%clk 0:02:34]} 12. dxe5 {[%clk 0:03:03]}  Nd7 {[%clk 0:02:34]} 13. f4 {[%clk 0:03:03]}  Nc5 {[%clk 0:02:34]} 14. Bc2 {[%clk 0:03:04]}  d4 {[%clk 0:02:33]} 15. Na4 {[%clk 0:03:05]}  Bxd2 {[%clk 0:02:02]} 16. Qxd2 {[%clk 0:03:03]}  Nxa4 {[%clk 0:01:52]} 17. Bxa4 {[%clk 0:03:04]}  dxe3 {[%clk 0:01:43]} 18. Qxe3 {[%clk 0:03:05]}  Qe7 {[%clk 0:01:38]} 19. f5 {[%clk 0:03:00]}  Qb4 {[%clk 0:01:05]} 20. Bb3 {[%clk 0:02:34]}  c5 {[%clk 0:01:05]} 21. Rc4 {[%clk 0:02:27]}  Qb5 {[%clk 0:00:52]} 22. f6 {[%clk 0:02:28]}  Qc6 {[%clk 0:00:45]} 23. Rg4 {[%clk 0:02:26]} 1-0


[Site "https://www.chess.com"]

[Event "Titled Tuesday Blitz November 22 Early 2022"]
[White "Bon, Michael"]
[Black "Ferreira, Vitor Hugo Vieira"]
[WhiteFideId "620696"]
[BlackFideId "2119765"]
[WhiteElo "2318"]
[BlackElo "2168"]
[Result "1-0"]
[Round "02"]
[TimeControl "180+1"]
[Date "2022.11.23"]
[WhiteClock "0:01:03"]
[BlackClock "0:01:56"]

1. e4 {[%clk 0:03:00]}  c5 {[%clk 0:02:57]} 2. Nf3 {[%clk 0:02:58]}  d6 {[%clk 0:02:54]} 3. d4 {[%clk 0:02:58]}  cxd4 {[%clk 0:02:54]} 4. Nxd4 {[%clk 0:02:59]}  Nf6 {[%clk 0:02:54]} 5. Nc3 {[%clk 0:03:00]}  a6 {[%clk 0:02:55]} 6. Bg5 {[%clk 0:03:00]}  e6 {[%clk 0:02:55]} 7. f4 {[%clk 0:03:00]}  Be7 {[%clk 0:02:55]} 8. Qf3 {[%clk 0:02:59]}  h6 {[%clk 0:02:55]} 9. Bh4 {[%clk 0:02:55]}  Qc7 {[%clk 0:02:55]} 10. O-O-O {[%clk 0:02:53]}  Nbd7 {[%clk 0:02:56]} 11. Be2 {[%clk 0:02:39]}  O-O {[%clk 0:02:44]} 12. g4 {[%clk 0:02:33]}  Re8 {[%clk 0:02:43]} 13. g5 {[%clk 0:02:30]}  hxg5 {[%clk 0:02:42]} 14. Bxg5 {[%clk 0:02:28]}  b5 {[%clk 0:02:41]} 15. Rhg1 {[%clk 0:02:15]}  b4 {[%clk 0:02:34]} 16. Na4 {[%clk 0:02:00]}  Bb7 {[%clk 0:02:32]} 17. Bd3 {[%clk 0:01:58]}  Nc5 {[%clk 0:02:32]} 18. Nxc5 {[%clk 0:01:23]}  dxc5 {[%clk 0:02:31]} 19. Qh3 {[%clk 0:01:17]}  cxd4 {[%clk 0:02:27]} 20. e5 {[%clk 0:01:09]}  Ne4 {[%clk 0:02:26]} 21. Bxe7 {[%clk 0:01:05]}  Qxe7 {[%clk 0:01:59]} 22. Rxg7+ {[%clk 0:01:03]}  Kxg7 {[%clk 0:01:59]} 23. Rg1+ {[%clk 0:01:03]}  Ng5 {[%clk 0:01:57]} 24. Qh7+ {[%clk 0:01:02]}  Kf8 {[%clk 0:01:56]} 25. Qh8# {[%clk 0:01:03]} 1-0


[Site "https://www.chess.com"]

[Event "Titled Tuesday Blitz November 22 Early 2022"]
[White "Bortnyk, Olexandr"]
[Black "Vaishali, Rameshbabu"]
[WhiteFideId "14120828"]
[BlackFideId "5091756"]
[WhiteElo "2723"]
[BlackElo "2351"]
[Result "1-0"]
[Round "02"]
[TimeControl "180+1"]
[Date "2022.11.22"]
[WhiteClock "0:00:24"]
[BlackClock "0:00:05"]

1. d4 {[%clk 0:03:00]}  Nf6 {[%clk 0:02:57]} 2. Nc3 {[%clk 0:02:57]}  d5 {[%clk 0:02:56]} 3. Bf4 {[%clk 0:02:57]}  g6 {[%clk 0:02:48]} 4. e3 {[%clk 0:02:57]}  Bg7 {[%clk 0:02:48]} 5. h4 {[%clk 0:02:57]}  h5 {[%clk 0:02:47]} 6. Nb5 {[%clk 0:02:58]}  Na6 {[%clk 0:02:46]} 7. Be2 {[%clk 0:02:58]}  O-O {[%clk 0:02:39]} 8. Nf3 {[%clk 0:02:56]}  Ne4 {[%clk 0:02:37]} 9. c4 {[%clk 0:02:55]}  c5 {[%clk 0:02:21]} 10. O-O {[%clk 0:02:52]}  Bg4 {[%clk 0:02:18]} 11. cxd5 {[%clk 0:02:49]}  Qxd5 {[%clk 0:02:17]} 12. Nc3 {[%clk 0:02:35]}  Nxc3 {[%clk 0:02:15]} 13. bxc3 {[%clk 0:02:36]}  cxd4 {[%clk 0:02:14]} 14. cxd4 {[%clk 0:02:37]}  Rac8 {[%clk 0:02:12]} 15. Qb3 {[%clk 0:02:30]}  Rfd8 {[%clk 0:01:56]} 16. Rfc1 {[%clk 0:02:18]}  Qxb3 {[%clk 0:01:40]} 17. axb3 {[%clk 0:02:17]}  Nb4 {[%clk 0:01:41]} 18. Rxc8 {[%clk 0:02:14]}  Rxc8 {[%clk 0:01:42]} 19. Rxa7 {[%clk 0:02:13]}  Rc1+ {[%clk 0:01:41]} 20. Kh2 {[%clk 0:02:13]}  Bf6 {[%clk 0:01:24]} 21. Rxb7 {[%clk 0:02:08]}  Nd5 {[%clk 0:01:24]} 22. Bg5 {[%clk 0:02:04]}  Rc2 {[%clk 0:01:20]} 23. Bxf6 {[%clk 0:01:15]}  exf6 {[%clk 0:01:07]} 24. Bc4 {[%clk 0:00:20]}  Nxe3 {[%clk 0:00:41]} 25. fxe3 {[%clk 0:00:21]}  Bxf3 {[%clk 0:00:41]} 26. Rxf7 {[%clk 0:00:21]}  Rxg2+ {[%clk 0:00:24]} 27. Kh3 {[%clk 0:00:22]}  Kh8 {[%clk 0:00:07]} 28. Rxf6 {[%clk 0:00:22]}  Be4 {[%clk 0:00:04]} 29. Rf4 {[%clk 0:00:23]}  Bb7 {[%clk 0:00:02]} 30. Rf8+ {[%clk 0:00:22]}  Kg7 {[%clk 0:00:02]} 31. Rf7+ {[%clk 0:00:23]}  Kh6 {[%clk 0:00:02]} 32. Rxb7 {[%clk 0:00:24]}  Rg4 {[%clk 0:00:02]} 33. Re7 {[%clk 0:00:21]}  g5 {[%clk 0:00:02]} 34. Re6+ {[%clk 0:00:21]}  Kg7 {[%clk 0:00:03]} 35. hxg5 {[%clk 0:00:22]}  Rxg5 {[%clk 0:00:03]} 36. Re5 {[%clk 0:00:23]}  Rg4 {[%clk 0:00:03]} 37. Rxh5 {[%clk 0:00:23]}  Rg1 {[%clk 0:00:03]} 38. Re5 {[%clk 0:00:22]}  Re1 {[%clk 0:00:04]} 39. d5 {[%clk 0:00:22]}  Kh6 {[%clk 0:00:04]} 40. d6 {[%clk 0:00:22]}  Rd1 {[%clk 0:00:05]} 41. Re6+ {[%clk 0:00:22]}  Kh5 {[%clk 0:00:04]} 42. Re5+ {[%clk 0:00:22]}  Kh6 {[%clk 0:00:04]} 43. Rd5 {[%clk 0:00:23]}  Re1 {[%clk 0:00:04]} 44. d7 {[%clk 0:00:23]}  Rxe3+ {[%clk 0:00:05]} 45. Kg2 {[%clk 0:00:24]}  Re7 {[%clk 0:00:04]} 46. d8=Q {[%clk 0:00:24]}  Rg7+ {[%clk 0:00:05]} 47. Kh2 {[%clk 0:00:24]} 1-0


[Site "https://www.chess.com"]